[Event "37th ECCC 2022"]
[Site "Mayrhofen"]
[Date "2022.10.03"]
[Round "1.55"]
[White "Rodshtein, Maxim"]
[Black "Saraci, Nderim"]
[Result "1/2-1/2"]
[ECO "E06"]
[WhiteElo "2602"]
[BlackElo "2480"]
[Annotator "TA"]
[PlyCount "75"]
[EventDate "2022.10.03"]
[EventType "team-tourn"]
[EventCountry "AUT"]
[SourceTitle "playchess.com"]
[Source "ChessBase"]
[SourceQuality "1"]
[TimeControl "40/5400+30:1800+30"]

{[%evp 18,75,22,21,18,0,19,23,24,6,14,13,27,0,52,49,69,62,77,70,77,82,88,84,112,78,77,79,77,77,82,84,83,80,75,56,56,56,68,57,57,61,107,72,80,87,85,51,60,12,15,22,28,28,30,20,22,0,24,0]} 1. d4 {[%emt 0:00:04]} Nf6 {[%emt 0:00:14]} 2. c4 {[%emt 0:00:10]} e6 {[%emt 0:00:21]} 3. g3 {[%emt 0:00:31]} d5 {[%emt 0:01:30]} 4. Bg2 {[%emt 0:00:17]} Be7 {[%emt 0:00:42]} 5. Nf3 {[%emt 0:00:36]} O-O {[%emt 0:01:56]} 6. O-O {[%emt 0:00:19]} dxc4 {[%emt 0:00:16]} 7. Qc2 {[%emt 0:00:12]} a6 {[%emt 0:00:20]} 8. a4 {[%emt 0:00:22]} Bd7 {[%emt 0:00:12]} 9. Qxc4 {[%emt 0:00:15]} Bc6 {[%emt 0:00:12]} 10. Bf4 {[%emt 0:00:40]} Bd6 {[%emt 0:10:47] E05: Open Catalan: 5 Nf3 Be7.} 11. Qc1 {[%emt 0:01:51]} Bxf4 {[%emt 0:13:37]} 12. Qxf4 {[%emt 0:00:07]} Qd6 {[%emt 0:03:58]} 13. Nbd2 {[%emt 0:05:15]} a5 {[%emt 0:21:28]} 14. Qe3 {[%emt 0:08:01]} Nbd7 {[%emt 0:04:40]} 15. Rfc1 {[%emt 0:11:00]} Bxf3 {[%emt 0:03:25]} (15... Nd5 $11 16. Qb3 Nb4) 16. Nc4 $14 {[%emt 0:03:29]} Qb4 {[%emt 0:05:58] [#] aiming for ...Bxg2.} 17. Qxf3 {[%emt 0:02:36] [#]} c6 $146 {[%emt 0:01:05]} ({Predecessor:} 17... Nd5 18. Qa3 f5 19. Qxb4 axb4 20. Nd2 c6 21. a5 Rfc8 22. e4 fxe4 23. Nxe4 Rc7 {1-0 (70) Rodshtein,M (2701)-Jakovenko,D (2718) Poikovsky 2017}) 18. Qa3 {[%emt 0:09:37]} Rfd8 {[%emt 0:08:49]} 19. Qxb4 {[%emt 0:05:16]} axb4 {[%emt 0:00:05]} 20. a5 {[%emt 0:02:47]} Ra7 {[%emt 0:01:02]} 21. Nd2 {[%emt 0:04:26]} Nb8 {[%emt 0:02:46]} 22. Nb3 {[%emt 0:00:54]} Na6 {[%emt 0:00:15]} 23. e3 {[%emt 0:03:11][%cal Be2e3,Be3e4][%mdl 32]} Nd5 {[%emt 0:00:37]} 24. Bf1 {[%emt 0:01:53]} Ndc7 {[%emt 0:04:34]} 25. Ra4 {[%emt 0:05:57]} Kf8 {[%emt 0:01:27]} 26. e4 {[%emt 0:04:30] White is more active.} Raa8 {[%emt 0:02:30]} 27. Kg2 {[%emt 0:06:21]} Ke7 {[%emt 0:01:06]} 28. h4 {[%emt 0:00:36]} f6 {[%emt 0:01:33]} 29. h5 {[%emt 0:05:16]} f5 {[%emt 0:05:22]} (29... e5 $14) 30. exf5 {[%emt 0:06:05]} exf5 {[%emt 0:00:06]} 31. Re1+ {[%emt 0:03:17]} Kf6 {[%emt 0:00:50]} 32. Raa1 {[%emt 0:01:25][%cal Ba4a1,Ba1c1,Bc1c4][%mdl 32]} (32. f4 {looks sharper.} Rd6 33. Re5 g6 34. Kf3) 32... Ne6 {[%emt 0:02:29]} 33. Red1 {[%emt 0:04:27]} (33. Bxa6 $14 {feels stronger.} Rxa6 34. Rac1) 33... Rd6 $11 {[%emt 0:01:25]} 34. Rac1 {[%emt 0:01:42]} Nac7 {[%emt 0:00:55]} 35. Rc4 {[%emt 0:00:18]} Na6 {[%emt 0:00:27]} 36. Rc2 {[%emt 0:01:44]} Nac7 {[%emt 0:00:06]} 37. Rc4 {[%emt 0:00:59]} Na6 {[%emt 0:00:37]} 38. Rc2 {[%emt 0:00:41] Weighted Error Value: White=0.09 (flawless) /Black=0.10 (very precise)} 1/2-1/2

[Event "37th ECCC 2022"]
[Site "Mayrhofen"]
[Date "2022.10.03"]
[Round "1.56"]
[White "Ondozi, Murtez"]
[Black "Mikhalevski, Victor"]
[Result "0-1"]
[ECO "D32"]
[WhiteElo "2402"]
[BlackElo "2523"]
[Annotator "TA"]
[PlyCount "72"]
[EventDate "2022.10.03"]
[EventType "team-tourn"]
[EventCountry "AUT"]
[SourceTitle "playchess.com"]
[Source "ChessBase"]
[SourceQuality "1"]
[TimeControl "40/5400+30:1800+30"]

{[%evp 21,72,-42,-30,-43,-45,-48,-23,-30,-34,-48,-45,-46,-43,-50,-32,-49,-14,-15,-22,-33,0,-41,0,0,0,-64,45,-14,-21,-7,0,0,0,0,0,-254,-181,-579,-572,-407,-339,-358,-356,-483,-487,-1141,-1062,-2303,-2095,-1587,-1559,-29997,-29998]} 1. d4 {[%emt 0:00:40]} d5 {[%emt 0:00:10]} 2. c4 {[%emt 0:00:04]} e6 {[%emt 0:00:10]} 3. Nc3 {[%emt 0:00:05]} c5 {[%emt 0:00:28]} 4. e3 {[%emt 0:01:48]} Nf6 {[%emt 0:05:04]} 5. Nf3 {[%emt 0:01:09]} a6 {[%emt 0:00:31]} 6. dxc5 {[%emt 0:00:22]} Bxc5 {[%emt 0:00:10]} 7. a3 {[%emt 0:00:03]} O-O {[%emt 0:03:03]} 8. b4 {[%emt 0:00:10]} Bd6 {[%emt 0:00:20]} 9. Bb2 {[%emt 0:00:13]} Nc6 {[%emt 0:00:45]} 10. c5 {[%emt 0:03:54]} Bc7 {[%emt 0:00:49]} 11. Be2 {[%emt 0:00:21]} e5 {[%emt 0:01:16] [#]} 12. Na4 $146 {[%emt 0:01:16] D40: Queen's Gambit Declined: Semi-Tarrasch with 5 e3.} ({Predecessor:} 12. O-O h6 13. Qc2 Qe7 14. e4 dxe4 15. Nxe4 Nxe4 16. Qxe4 f5 17. Bc4+ Be6 18. Qc2 Bxc4 19. Qxc4+ Qf7 20. Qxf7+ Kxf7 {½-½ (51) Takac,Z (2066)-Jakovljevic,V (2351) Bosnjaci 2020}) 12... Bg4 {[%emt 0:04:28]} 13. h3 {[%emt 0:01:03]} Bh5 {[%emt 0:00:19]} 14. O-O {[%emt 0:03:57] Black has an edge.} Qe7 {[%emt 0:01:19]} 15. Nh4 {[%emt 0:06:18]} Bxe2 {[%emt 0:05:40]} 16. Qxe2 {[%emt 0:01:20]} Rad8 {[%emt 0:00:53]} 17. Rad1 {[%emt 0:01:55]} Rfe8 {[%emt 0:05:27]} 18. Rfe1 {[%emt 0:03:42]} g6 {[%emt 0:02:13]} 19. Nf3 {[%emt 0:04:09]} e4 {[%emt 0:11:04]} 20. Nd2 {[%emt 0:01:35]} h5 {[%emt 0:11:15]} 21. Nf1 {[%emt 0:02:24]} Be5 {[%emt 0:08:03]} 22. Nb6 {[%emt 0:13:04]} Qe6 {[%emt 0:09:59]} 23. Qc2 {[%emt 0:02:37]} ({White should play} 23. Bxe5 $11 Nxe5 24. Nd2) 23... Qf5 {[%emt 0:06:16]} ({Black should try} 23... Bxb2 $15 24. Qxb2 Ne5) 24. Re2 {[%emt 0:14:05]} (24. Ng3 $14 Qg5 25. Ne2) 24... Qg5 $11 {[%emt 0:02:55]} 25. Kh1 {[%emt 0:04:59]} Qh4 {[%emt 0:03:48]} 26. Red2 {[%emt 0:08:51][%cal Rb6d5]} Bxb2 $1 {[%emt 0:00:11]} 27. Qxb2 {[%emt 0:00:05][%cal Rb6d5]} Ne5 $1 {[%emt 0:00:04]} 28. Qc3 $2 {[%emt 0:11:06][%mdl 8192]} (28. Nxd5 Nxd5 29. Rxd5 Nd3 30. R5xd3 (30. Rxd8 $2 Rxd8 31. Rxd3 exd3 $19) 30... Rxd3 $17) (28. Rd4 $11 {and White stays safe.}) 28... Nf3 {[%emt 0:03:10][%cal Of6g4]} 29. Rc2 $2 {[%emt 0:08:05]} (29. gxf3 {gets mated.} Qxh3+ 30. Nh2 {[#]} exf3 $1 31. Rg1 Ng4 32. Rxg4 hxg4) (29. Nh2 {is a better chance.}) 29... Ng4 $19 {[%emt 0:01:00]} 30. Qb2 {[%emt 0:01:09]} d4 {[%emt 0:08:07] Dancing on a razor blade.} 31. exd4 {[%emt 0:00:29] [#]} e3 $1 {[%emt 0:00:08] aiming for ...e2.} 32. fxe3 {[%emt 0:01:53]} (32. gxf3 Qxh3+) 32... Rxe3 {[%emt 0:00:16][%cal Od8e8,Be8e3,Be3f3,Bf3f2][%mdl 32] And now ...Rde8! would win.} 33. gxf3 {[%emt 0:02:01]} (33. Nxe3 Nxe3 34. Rb1 Rxd4) (33. d5 $142 Re1 34. Qc3 (34. Rxe1 $2 Qxe1 35. Rc1 Qf2 $19) 34... Nf2+ 35. Rxf2 Qxf2 36. Qxf3 Qxf3 37. gxf3 Rxd1 38. Kg2) 33... Rxf3 {[%emt 0:00:56]} 34. Nh2 {[%emt 0:01:57]} Nf2+ {[%emt 0:00:38]} 35. Rxf2 {[%emt 0:00:37]} Rxf2 {[%emt 0:00:05]} 36. Qb1 {[%emt 0:00:31] Prevents Qe4+.} Qxh3 {[%emt 0:00:22] Weighted Error Value: White=1.24/Black=0.21 (precise)} 0-1

[Event "37th ECCC 2022"]
[Site "Mayrhofen"]
[Date "2022.10.03"]
[Round "1.58"]
[White "Fejzullahu, Afrim"]
[Black "Steinberg, Nitzan"]
[Result "1/2-1/2"]
[ECO "D38"]
[WhiteElo "2244"]
[BlackElo "2545"]
[Annotator "TA"]
[PlyCount "160"]
[EventDate "2022.10.03"]
[EventType "team-tourn"]
[EventCountry "AUT"]
[SourceTitle "playchess.com"]
[Source "ChessBase"]
[SourceQuality "1"]
[TimeControl "40/5400+30:1800+30"]

{[%evp 20,160,0,-8,1,0,0,0,0,6,134,126,122,125,124,114,108,116,119,71,70,85,68,20,37,24,19,7,29,37,32,37,79,84,70,86,116,121,130,129,120,129,129,129,131,136,155,72,69,81,68,82,85,85,68,85,66,68,79,74,138,114,259,239,269,121,121,121,121,121,121,121,121,121,121,73,73,0,121,122,132,132,341,353,317,348,908,0,0,0,12840,12841,12842,12842,12843,12843,12843,12841,12841,12842,12842,0,0,0,0,0,0,0,0,0,0,0,0,0,0,0,0,0,0,0,0,0,0,0,0,0,0,0,0,0,0,0,0,0,0,0,0,0,0,0,0,0,0]} 1. d4 {[%emt 0:00:07]} d5 {[%emt 0:01:09]} 2. c4 {[%emt 0:00:20]} e6 {[%emt 0:00:12]} 3. Nf3 {[%emt 0:00:17]} Nf6 {[%emt 0:00:26]} 4. Nc3 {[%emt 0:00:44]} Bb4 {[%emt 0:03:57]} 5. e3 {[%emt 0:03:16]} c5 {[%emt 0:02:53]} 6. Bd2 {[%emt 0:02:36]} O-O {[%emt 0:08:40]} 7. dxc5 {[%emt 0:07:07]} Bxc5 {[%emt 0:04:31]} 8. Rc1 {[%emt 0:05:12]} Nc6 {[%emt 0:04:39]} 9. cxd5 {[%emt 0:11:25]} exd5 {[%emt 0:00:17]} 10. Be2 {[%emt 0:03:38]} a6 {[%emt 0:04:26]} 11. O-O {[%emt 0:00:21]} Ba7 {[%emt 0:04:36] D32: Tarrasch Defence: Sidelines and lines without g3.} 12. a3 {[%emt 0:06:28]} Qd6 {[%emt 0:04:50] [#]} 13. b4 $146 {[%emt 0:08:34][%cal Bb2b4,Bb4b5,Bb5c6][%mdl 32]} ({Predecessor:} 13. Qc2 Bg4 14. Na4 Rac8 15. h3 Nd4 16. Qd1 Rxc1 17. Bxc1 Nxe2+ 18. Qxe2 Bh5 19. Bd2 {0-1 (42) Fitzke,U (2003)-Quinn,J (2103) Dresden 2013}) 13... Bg4 {[%emt 0:09:18]} 14. b5 {[%emt 0:07:24]} Bb8 {[%emt 0:04:56]} (14... Bxf3 $11 15. Bxf3 Ne5) 15. bxc6 $16 {[%emt 0:08:58]} ({Much weaker is} 15. g3 $6 axb5 16. Nxb5 Qd7 $11) 15... Bxf3 {[%emt 0:00:42][%csl Gb8][%cal Rd6h2]} 16. g3 {[%emt 0:00:49]} Bxe2 {[%emt 0:01:34]} 17. Nxe2 {[%emt 0:00:49]} ({Reject} 17. cxb7 $6 Bxd1 18. bxa8=Q Bf3 $11) 17... Qc7 {[%emt 0:09:19]} (17... bxc6 $2 18. Bb4 Qd7 19. Bxf8 Kxf8 20. Qc2 $18) 18. Bc3 {[%emt 0:10:28]} Ne4 {[%emt 0:04:00]} 19. Qxd5 {[%emt 0:07:03]} (19. Ba1 $142 bxc6 20. Nd4) 19... Qxc6 {[%emt 0:01:19]} 20. Qxc6 {[%emt 0:01:10]} bxc6 {[%emt 0:00:01]} 21. f3 {[%emt 0:07:18]} (21. Bb2 $14) 21... Nxc3 $11 {[%emt 0:11:49]} 22. Rxc3 {[%emt 0:00:41]} Ba7 {[%emt 0:00:15]} 23. Nd4 {[%emt 0:03:02]} Rfe8 {[%emt 0:09:51][%cal Oe8e3] And now ...Rxe3! would win.} (23... Bxd4 $5 24. exd4 Rfd8 $14) 24. Kf2 $36 {[%emt 0:01:39][%mdl 2048] White has the initiative.} Rab8 {[%emt 0:06:23] ...Bxd4 is the strong threat.} 25. Rfc1 {[%emt 0:00:41]} Rb2+ {[%emt 0:02:18]} 26. R1c2 {[%emt 0:01:08]} Rxc2+ {[%emt 0:00:20]} 27. Rxc2 $16 {[%emt 0:00:29][%mdl 4096] Endgame KRB-KRN} c5 {[%emt 0:00:40]} 28. Nc6 {[%emt 0:01:59]} Bb6 {[%emt 0:00:04]} 29. Rb2 {[%emt 0:00:08]} Bc7 {[%emt 0:00:01]} 30. Rb7 {[%emt 0:00:12]} Bd6 {[%emt 0:00:01]} 31. Na5 {[%emt 0:00:55]} ({Don't do} 31. Rd7 $6 Bf8 $14) 31... Re6 {[%emt 0:01:50]} 32. Nc4 {[%emt 0:00:14]} Bf8 {[%emt 0:00:05]} 33. Rb6 {[%emt 0:01:12] White is more active.} (33. f4 $142) 33... Rxb6 {[%emt 0:01:00]} 34. Nxb6 {[%emt 0:00:07] KB-KN} f5 {[%emt 0:00:02]} 35. Ke2 {[%emt 0:00:37]} Kf7 {[%emt 0:00:01]} 36. Kd3 $1 {[%emt 0:00:35]} Ke6 {[%emt 0:00:01]} 37. Kc4 {[%emt 0:00:40] Hoping for Na4.} Kd6 {[%emt 0:00:31]} 38. Na4 {[%emt 0:00:11]} Kc6 {[%emt 0:00:06]} 39. Nc3 {[%emt 0:00:33]} Bd6 {[%emt 0:02:03]} ({Black should play} 39... g6) 40. Nd5 {[%emt 0:00:35]} Bf8 {[%emt 0:00:44]} (40... h6 $16) 41. Nf4 $1 $18 {[%emt 0:04:29] Threatens to win with Ne6.} g6 {[%emt 0:08:57]} 42. Nd3 {[%emt 0:05:31]} (42. Ne6 $1 $18 {[%cal Re6f8]} Be7 43. a4) 42... Bd6 $16 {[%emt 0:04:48]} 43. e4 {[%emt 0:06:21]} fxe4 {[%emt 0:00:03]} 44. fxe4 {[%emt 0:00:06]} Be7 {[%emt 0:01:48]} 45. a4 {[%emt 0:04:49]} Bd6 {[%emt 0:00:41]} 46. e5 {[%emt 0:04:07]} Bf8 {[%emt 0:00:48]} 47. Nf4 {[%emt 0:05:58]} (47. h3 $142) 47... Bg7 {[%emt 0:01:27]} 48. Nd3 {[%emt 0:00:17]} (48. e6 $142 $1) 48... Bf8 $1 {[%emt 0:00:01]} 49. h3 {[%emt 0:00:50]} Be7 {[%emt 0:01:42]} 50. Nf4 {[%emt 0:00:24] Black must now prevent Ne6.} Bf8 $2 {[%emt 0:00:01]} (50... Bg5 $16 51. Nd5 a5) 51. Ne6 $1 $18 {[%emt 0:02:06]} Be7 {[%emt 0:00:06]} 52. g4 $1 {[%emt 0:00:40]} h5 $2 {[%emt 0:03:38]} (52... a5 53. g5 Kb6) 53. gxh5 $2 {[%emt 0:00:30]} (53. g5 $18 {Strongly threatening h4.} Kd7 54. Nxc5+ Ke8 55. Nxa6 Bxg5 56. Nb4) 53... gxh5 $11 {[%emt 0:00:01]} 54. Ng7 {[%emt 0:00:15]} Bd8 $2 {[%emt 0:01:21][%mdl 8192]} (54... h4 $11) 55. Nxh5 $18 {[%emt 0:00:29]} Bc7 {[%emt 0:00:01]} 56. e6 {[%emt 0:00:32]} Be5 {[%emt 0:00:01]} 57. e7 {[%emt 0:00:47]} Kd7 {[%emt 0:00:01]} 58. Kxc5 {[%emt 0:00:24]} Kxe7 {[%emt 0:00:03] [#]} 59. Kd5 $1 {[%emt 0:00:24]} Bh2 {[%emt 0:03:04] [#]} 60. h4 $2 {[%emt 0:00:32]} ({White has to play} 60. Ng7 $1 $18 Kf6 61. Ne6) 60... Kf7 $11 {[%emt 0:00:10] The position is equal.} 61. Ke4 {[%emt 0:00:17]} Kg6 {[%emt 0:00:43]} 62. Nf4+ {[%emt 0:00:11]} Kh6 {[%emt 0:00:19]} 63. Kf5 {[%emt 0:01:06]} a5 $1 {[%emt 0:00:42]} 64. Kg4 {[%emt 0:00:48]} Bxf4 {[%emt 0:02:21]} 65. Kxf4 {[%emt 0:00:06] KPP-KP} Kh5 {[%emt 0:00:01]} 66. Kg3 {[%emt 0:00:08]} Kh6 {[%emt 0:00:12]} 67. Kg4 {[%emt 0:00:24]} Kg6 {[%emt 0:00:01]} 68. h5+ {[%emt 0:00:47]} Kh6 {[%emt 0:00:01]} 69. Kh4 {[%emt 0:00:13]} Kh7 {[%emt 0:00:09]} 70. Kg5 {[%emt 0:00:45]} Kg7 {[%emt 0:00:03]} 71. h6+ {[%emt 0:00:52]} Kh7 {[%emt 0:00:03]} 72. Kh5 {[%emt 0:00:06]} Kh8 {[%emt 0:00:04]} 73. Kg4 {[%emt 0:00:17]} Kh7 {[%emt 0:00:04]} 74. Kg5 {[%emt 0:00:06]} Kh8 {[%emt 0:00:31]} 75. Kf5 {[%emt 0:01:23]} Kh7 {[%emt 0:00:02]} 76. Ke5 {[%emt 0:00:35]} Kxh6 {[%emt 0:00:04]} 77. Kd5 {[%emt 0:00:06]} Kg7 {[%emt 0:00:06]} 78. Kc5 {[%emt 0:00:17]} Kf8 {[%emt 0:00:03]} 79. Kb5 {[%emt 0:00:05]} Ke8 {[%emt 0:00:04]} 80. Kxa5 {[%emt 0:00:07]} Kd8 {[%emt 0:00:03] Black defended with fortune.  Weighted Error Value: White=0.28 (precise) /Black=0.21 (precise)} 1/2-1/2

[Event "37th ECCC 2022"]
[Site "Mayrhofen"]
[Date "2022.10.03"]
[Round "1.59"]
[White "Huzman, Alexander"]
[Black "Zymberi, Astrit"]
[Result "1/2-1/2"]
[ECO "E92"]
[WhiteElo "2535"]
[BlackElo "2052"]
[Annotator "TA"]
[PlyCount "80"]
[EventDate "2022.10.03"]
[EventType "team-tourn"]
[EventCountry "AUT"]
[SourceTitle "playchess.com"]
[Source "ChessBase"]
[SourceQuality "1"]
[TimeControl "40/5400+30:1800+30"]

{[%evp 26,80,77,38,52,59,73,90,77,69,82,43,93,16,53,20,15,19,55,62,51,64,64,45,85,8,102,0,114,105,91,-13,77,82,95,76,117,0,0,0,0,0,35,0,8,32,14,0,40,34,325,304,254,0,40,0,45]} 1. Nf3 {[%emt 0:00:07] Knaak,R} Nf6 {[%emt 0:00:34]} 2. c4 {[%emt 0:00:19]} g6 {[%emt 0:00:30]} 3. Nc3 {[%emt 0:01:06]} Bg7 {[%emt 0:01:11]} 4. e4 {[%emt 0:00:55]} d6 {[%emt 0:00:31]} 5. d4 {[%emt 0:00:21][%cal Bd2d4,Bd4d5][%mdl 32]} O-O {[%emt 0:00:21]} 6. Be2 {[%emt 0:00:09]} e5 {[%emt 0:01:02]} 7. Be3 {[%emt 0:00:51]} Ng4 {[%emt 0:01:39]} 8. Bg5 {[%emt 0:00:58][%cal Be3g5,Bg5h4,Bh4f2][%mdl 32]} f6 {[%emt 0:00:25]} 9. Bh4 {[%emt 0:00:08]} Nc6 {[%emt 0:01:48]} 10. d5 {[%emt 0:01:37]} Ne7 {[%emt 0:01:35]} 11. Nd2 {[%emt 0:00:32]} Nh6 {[%emt 0:02:31]} 12. f3 {[%emt 0:07:42]} g5 {[%emt 0:03:51]} 13. Bf2 {[%emt 0:03:19]} f5 {[%emt 0:10:50]} 14. c5 {[%emt 0:03:34] White is more active.} Ng6 {[%emt 0:02:22] E92: King's Indian: Classical: 6 Be2 e5: 7 dxe5, 7 Be3 and Petrosian System without 7...Nbd7.} 15. g3 {[%emt 0:03:28]} g4 {[%emt 0:05:50]} 16. fxg4 {[%emt 0:11:23]} Nxg4 {[%emt 0:05:38] White is better.} 17. Bxg4 {[%emt 0:01:34]} fxg4 {[%emt 0:00:26] [#]} 18. Qe2 $146 {[%emt 0:01:21]} ({Predecessor:} 18. Nc4 Nh8 19. cxd6 cxd6 20. O-O Nf7 21. Be3 Bd7 22. a4 Bf6 23. Qe2 Bg5 24. Kh1 {1-0 (60) Ehlvest,J (2620)-Van Wely,L (2585) Groningen 1993 CBM 039 [Knaak,R]}) 18... Bd7 {[%emt 0:13:34]} (18... b6 $14) 19. b4 {[%emt 0:12:39]} ({White should try} 19. O-O $16) 19... Bh6 $11 {[%emt 0:07:41]} 20. Be3 {[%emt 0:01:55]} Bxe3 {[%emt 0:06:03]} 21. Qxe3 {[%emt 0:00:04]} a5 {[%emt 0:02:17]} 22. b5 {[%emt 0:01:30]} dxc5 {[%emt 0:04:29]} 23. Qxc5 {[%emt 0:00:51]} b6 {[%emt 0:03:34]} 24. Qe3 {[%emt 0:05:59]} (24. Qc4 $5 {[%cal Rd5d6]}) 24... Qe7 {[%emt 0:02:36]} 25. a3 {[%emt 0:00:25]} (25. a4 $16) 25... Kg7 {[%emt 0:07:22]} (25... a4 $11) 26. Rf1 {[%emt 0:04:15]} (26. a4 $16) 26... h5 {[%emt 0:04:01]} (26... a4 $1 $11 {remains equal.}) 27. Rxf8 {[%emt 0:05:14]} Rxf8 {[%emt 0:00:51]} 28. Ke2 {[%emt 0:00:10]} (28. a4 $16) 28... h4 {[%emt 0:01:24] [#]} (28... a4 $1 $11 {keeps the balance.}) 29. a4 $1 $16 {[%emt 0:00:43]} hxg3 {[%emt 0:05:00]} 30. hxg3 {[%emt 0:00:11]} Rh8 {[%emt 0:00:14][%cal Og6f4] [#]} 31. Rf1 {[%emt 0:05:04] Prevents Nf4+.} (31. Nd1 $1 $16) 31... Rh3 $11 {[%emt 0:01:19]} 32. Kd3 {[%emt 0:00:27]} Nf4+ {[%emt 0:02:20]} 33. Kc2 {[%emt 0:03:50]} Nh5 {[%emt 0:00:08]} (33... Be8 $5 {[%cal Re8g6]}) 34. Rg1 {[%emt 0:02:26]} (34. d6 $5 cxd6 35. Nd5 $14) 34... Kg6 {[%emt 0:01:09]} 35. Nc4 {[%emt 0:02:50][%cal Od5d6] d6! is the strong threat.} Rh2+ {[%emt 0:01:12]} 36. Kd3 {[%emt 0:00:13][%cal Od5d6] Chess con chili.} Rh3 {[%emt 0:00:34]} 37. Qf2 {[%emt 0:06:07]} Nf4+ $2 {[%emt 0:01:16][%mdl 8192]} (37... Kg7 $14) 38. Kc2 $18 {[%emt 0:00:41] Hoping for d6.} Nh5 {[%emt 0:00:16]} 39. Qe3 $2 {[%emt 0:08:09]} (39. Rf1 $18) 39... Rh2+ $14 {[%emt 0:00:40]} 40. Kd3 {[%emt 0:00:05][%cal Od5d6] Strongly threatening d6!} (40. Kd1 $5 {[%cal Rg1f1]}) 40... Rh3 {[%emt 0:00:21] Weighted Error Value: White=0.39/Black=0.40} 1/2-1/2